Cogmind - Beta 12 X1 @@@ ROGUE MODE // 2022.09.01 @ 13:39:48 Player: Momo Result: Destroyed by CL-ANK with CL-ANK's Mallet Performance ------------- Evolutions (1) 500 Regions Visited (5) 1000 Robots Destroyed (29) 145 Value Destroyed (617) 617 Prototype IDs (1) 20 Alien Tech Used (0) 0 Bonus (500) 500 TOTAL SCORE: 2782 Bonus ------- Pacifist 200 High Alert Combat Kills 42 Aligned with FarCom 300 Friendly Fire -42 Cogmind --------- Core Integrity 0/400 Matter 220/300 Energy 91/100 System Corruption 6% Temperature Cool (0) Movement Rolling (130) Ox2 Location -8/Mines Parts ------- > --- POWER (1) -------- (None) > --- PROPULSION (2) --- Compact Wheel Flight Unit > --- UTILITY (4) ------ High-capacity Storage Unit Melee Analysis Suite Shield Generator > --- WEAPON (2) ------- Flail Maul > --- INVENTORY (20) --- Lightpack 2.0 Weight Redist. System Sensor Array Experimental Sensor Array Signal Interpreter Terrain Scan Processor 0b10 Alert Chip Long-range Tractor Beam Latent Energy Streamer Heavy Assault Rifle Heavy Assault Rifle Autogun Grenade Launcher Grenade Launcher Peak State ------------ > --- POWER ------------ Ion Engine > --- PROPULSION ------- Compact Wheel Compact Wheel > --- UTILITY ---------- Heat Sink High-capacity Storage Unit Weight Redist. System Light Armor Plating > --- WEAPON ----------- Latent Energy Streamer Rocket Launcher > --- INVENTORY -------- Nuclear Core Compact Wheel Lightpack 2.0 Sensor Array Experimental Sensor Array Signal Interpreter Terrain Scan Processor 0b10 Alert Chip Melee Analysis Suite Shield Generator Long-range Tractor Beam Heavy Assault Rifle Heavy Assault Rifle Autogun Grenade Launcher Grenade Launcher Flail Maul [Rating: 27] Favorites ----------- Power Ion Engine Engine Ion Engine Power Core Nuclear Core Propulsion Compact Wheel Wheel Compact Wheel Flight Unit Flight Unit Utility Light Armor Plating Device Heat Sink Storage High-capacity Storage Unit Processor Melee Analysis Suite Protection Light Armor Plating Weapon Rocket Launcher Energy Gun Beam Rifle Energy Cannon Latent Energy Streamer Ballistic Gun Autogun Launcher Rocket Launcher Impact Weapon Maul Build | -11 -10 -9 -9 -9 -8 ------- Run | Scr Mat Mat Min Exi Min Slots Evolved 2 | . . 2 . . . Power . | . . . . . . Propulsion . | . . . . . . Utility 2 | . . 2 . . . Weapon . | . . . . . . Parts Attached 28 | 1 4 10 2 4 7 Power 2 | . 1 . . . 1 Engine 1 | . 1 . . . . Core 1 | . . . . . 1 Reactor . | . . . . . . Propulsion 5 | 1 1 . 1 1 1 Treads . | . . . . . . Leg . | . . . . . . Wheel 4 | 1 1 . 1 1 . Hover . | . . . . . . Flight 1 | . . . . . 1 Utility 7 | . . 4 . 1 2 Device 3 | . . 1 . 1 1 Storage 1 | . . 1 . . . Processor 1 | . . . . . 1 Hackware . | . . . . . . Protection 2 | . . 2 . . . Artifact . | . . . . . . Weapon 14 | . 2 6 1 2 3 Energy Gun 2 | . 1 1 . . . Energy Cannon 1 | . . . . 1 . Ballistic Gun 4 | . 1 3 . . . Ballistic Cannon . | . . . . . . Launcher 4 | . . 2 1 . 1 Special Weapon . | . . . . . . Impact Weapon 3 | . . . . 1 2 Slashing Weapon . | . . . . . . Piercing Weapon . | . . . . . . Special Melee Weapon . | . . . . . . Unidentified Prototypes 1 | . . . . 1 . Parts Lost 11 | . . 2 2 5 2 Power 2 | . . . . 1 1 Propulsion 3 | . . . 1 1 1 Utility 3 | . . . 1 2 . Weapon 3 | . . 2 . 1 . Highest Loss Streak 5 | . . 1 2 5 1 To Critical Strikes 1 | . . . 1 . . Average Slot Usage (%) 84 | . 40 77 95 91 61 Engine 9 | . 7 11 11 10 . Wheel 21 | . 21 22 21 22 15 Device 9 | . . 5 11 16 5 Storage 10 | . . 11 11 11 11 Protection 11 | . . 7 18 10 . Ballistic Gun 10 | . 5 15 11 7 . Launcher 7 | . . 4 10 9 5 Impact Weapon 1 | . . . . . 11 Naked Turns . | . . . . . . Heaviest Build 63 | . 8 58 59 63 54 Greatest Support 38 | 16 26 26 32 38 38 Greatest Overweight (x) 3 | . . 2 3 1 3 Average Overweight (x) 1 | . . 1 1 1 1 Largest Inventory Capacity 20 | 5 5 20 20 20 20 Average Capacity 19 | 5 5 19 20 20 20 Most Carried 20 | 5 5 16 20 20 19 Average Carried 15 | 4 3 10 18 19 18 Final Capacity 20 | 5 5 20 20 20 20 Final Carried 19 | 5 2 16 19 19 16 Class Distribution -------------------- 100% | Mutant Dominant Class ---------------- Mutant | -10/Materials Mutant | -9/Materials Mutant | -9/Mines Mutant | -9/Exiles Mutant | -8/Mines Resources | -11 -10 -9 -9 -9 -8 ----------- Run | Scr Mat Mat Min Exi Min Matter Collected 636 | 181 . 383 54 . 18 Remotely . | . . . . . . Salvage Created 725 | . . 603 45 53 24 Parts 61 | . . 41 13 . 7 Haulers Intercepted . | . . . . . . Recyclers Shooed 3 | . . 3 . . . Parts Field Recycled . | . . . . . . Retrieved Matter . | . . . . . . Parts Self-Destructed . | . . . . . . Prevented . | . . . . . . Kills | -11 -10 -9 -9 -9 -8 ------- Run | Scr Mat Mat Min Exi Min Combat Hostiles Destroyed 29 | . . 14 8 3 4 Melee 1 | . . . . . 1 Guns 5 | . . 5 . . . AOE 23 | . . 9 8 3 3 Classes Destroyed 7 | . . 6 . 1 . Recycler 2 | . . 2 . . . Watcher 1 | . . 1 . . . Swarmer 16 | . . 4 8 . 4 Grunt 3 | . . 3 . . . Duelist 1 | . . 1 . . . Sentry 6 | . . 6 . . . Assembled 3 | . . . . 3 . Best Kill Streak 8 | . . 8 4 3 4 Combat Bots Only 6 | . . 6 4 3 4 Max Kills in Single Turn 4 | . . 3 4 3 3 Gunslinging . | . . . . . . Exploded 4 | . . 3 4 3 3 Melee 1 | . . . . . 1 Uniques/NPCs Destroyed . | . . . . . . Combat | -11 -10 -9 -9 -9 -8 -------- Run | Scr Mat Mat Min Exi Min Damage Taken 1483 | . 252 476 71 265 419 Core 636 | . 134 141 14 80 267 Absorbed by Shields 22 | . . . . . 22 Core Remaining (%) 73 | 100 46 . . . . Volleys Fired 60 | . . 53 4 2 1 Largest 2 | . . 2 1 1 1 Hottest 60 | . . 53 33 60 30 Shots Fired 81 | . . 74 4 2 1 Gun 66 | . . 66 . . . Cannon 2 | . . . . 2 . Launcher 13 | . . 8 4 . 1 Special . | . . . . . . Kinetic 66 | . . 66 . . . Thermal . | . . . . . . Explosive 13 | . . 8 4 . 1 Electromagnetic 2 | . . . . 2 . Robot Hit Streak 16 | . . 16 2 4 . Robot Miss Streak 4 | . . 4 1 . 1 Penetration Max . | . . . . . . Secondary Targets . | . . . . . . Shots Hit Robots 53 | . . 46 2 2 3 Core Hits 43 | . . 28 7 3 5 Critical Kills 1 | . . 1 . . . Critical Parts Destroyed . | . . . . . . Critical Strikes 1 | . . 1 . . . Destroy 1 | . . 1 . . . Melee Attacks 3 | . . . . . 3 Impact 3 | . . . . . 3 Slashing . | . . . . . . Piercing . | . . . . . . Sneak Attacks . | . . . . . . Combat Hostiles . | . . . . . . Follow-up Attacks . | . . . . . . Damage Inflicted 1913 | . . 983 398 284 248 Guns 460 | . . 460 . . . Cannons 8 | . . . . 8 . Explosions 1353 | . . 523 398 276 156 Melee 92 | . . . . . 92 Ramming . | . . . . . . Kinetic 460 | . . 460 . . . Thermal . | . . . . . . Explosive 1077 | . . 523 398 . 156 Electromagnetic 284 | . . . . 284 . Impact 92 | . . . . . 92 Slashing . | . . . . . . Piercing . | . . . . . . Highest Corruption 6 | . . . . 6 6 Average Corruption 5 | . . . . 3 6 Corruption Purged . | . . . . . . Corruption Blocked . | . . . . . . Effects 7 | . . . . 1 6 Message Errors 1 | . . . . . 1 Matter Fused 2 | . . . . . 2 Energy Discharges 1 | . . . . . 1 Parts Rejected 1 | . . . . . 1 Data Loss (minor) 1 | . . . . . 1 Data Loss (major) 1 | . . . . 1 . Overload Shots . | . . . . . . Overflow Damage 77 | . . 35 16 22 4 Projectiles . | . . . . . . Explosions 77 | . . 35 16 22 4 Melee . | . . . . . . Knockbacks . | . . . . . . Impact . | . . . . . . Kinetic . | . . . . . . Secondary . | . . . . . . Self-Inflicted Damage 61 | . . 7 44 . 10 Shots 3 | . . 1 1 . 1 Rammed . | . . . . . . Targets Rammed . | . . . . . . Kicked . | . . . . . . Crushed . | . . . . . . Highest Temperature 24 | . . 24 . . . Average Temperature 5 | . . 5 . . . Received Heat Transfer 351 | . 141 210 . . . Siege Activations . | . . . . . . Robots Corrupted . | . . . . . . Combat Hostiles . | . . . . . . Parts Fried . | . . . . . . Impact Corruptions . | . . . . . . Robots Melted . | . . . . . . Combat Hostiles . | . . . . . . Parts Melted . | . . . . . . Heat Transferred . | . . . . . . Parts Sabotaged . | . . . . . . Parts Stolen . | . . . . . . Parts Stripped . | . . . . . . Power Chain Reactions . | . . . . . . Missiles Intercepted . | . . . . . . Latent Energy Used 400 | . . . . 400 . LE Corruption 6 | . . . . 6 . Alert | -11 -10 -9 -9 -9 -8 ------- Run | Scr Mat Mat Min Exi Min Peak Influence 545 | . 56 545 307 . 90 Initial 175 | . . 23 175 . . Average 229 | . 28 286 251 . 48 Maximum Alert Level 2 | . . 2 1 . . Low Security (%) 35 | 100 100 25 22 . 100 Level 1 54 | . . 46 77 . . Level 2 9 | . . 27 . . . Level 3 . | . . . . . . Level 4 . | . . . . . . Level 5 . | . . . . . . High Security . | . . . . . . Max Security . | . . . . . . Squads Dispatched 4 | . 1 3 . . . Investigation . | . . . . . . Extermination . | . . . . . . Reinforcement 4 | . 1 3 . . . Assault . | . . . . . . Garrison . | . . . . . . Intercept . | . . . . . . Searches Triggered . | . . . . . . Construction Impeded . | . . . . . . Haulers Reinforced . | . . . . . . Active Scanning Responses . | . . . . . . Cargo Convoy Interrupts . | . . . . . . Stealth | -11 -10 -9 -9 -9 -8 --------- Run | Scr Mat Mat Min Exi Min Distress Signals 1 | . . 1 . . . Communications Jammed . | . . . . . . Distress Signals . | . . . . . . Times Spotted 49 | . 9 21 7 6 6 Peak Tracking Total 11 | . 7 6 4 11 5 Tactical Retreats 2 | . 1 . . 1 . Traps | -11 -10 -9 -9 -9 -8 ------- Run | Scr Mat Mat Min Exi Min Traps Triggered . | . . . . . . Indirectly . | . . . . . . Trap Hack Attempts . | . . . . . . Triggered . | . . . . . . Disarmed . | . . . . . . Reprogrammed . | . . . . . . Reused . | . . . . . . Traps Extracted . | . . . . . . Installed . | . . . . . . Triggered . | . . . . . . Machines | -11 -10 -9 -9 -9 -8 ---------- Run | Scr Mat Mat Min Exi Min Machines Disabled 6 | . . 1 . 5 . Max in Single Turn 4 | . . 1 . 4 . Machines Sabotaged . | . . . . . . Garrisons Compromised . | . . . . . . Overloaded Fab Kills . | . . . . . . Hacking | -11 -10 -9 -9 -9 -8 --------- Run | Scr Mat Mat Min Exi Min Machines Accessed 4 | . 1 3 . . . Terminals 3 | . 1 2 . . . Fabricators . | . . . . . . Repair Stations . | . . . . . . Recycling Units . | . . . . . . Scanalyzers 1 | . . 1 . . . Garrison Access . | . . . . . . Total Hacks 12 | . 3 9 . . . Successful 7 | . 2 5 . . . Failed 5 | . 1 4 . . . Catastrophic 2 | . 1 1 . . . Database Lockouts . | . . . . . . Manual 4 | . . 3 . 1 . Terminals 8 | . 3 5 . . . Fabricators . | . . . . . . Repair Stations . | . . . . . . Recycling Units . | . . . . . . Scanalyzers 4 | . . 4 . . . Garrison Access . | . . . . . . Terminal Hacks 3 | . 2 1 . . . Branch Access Points 2 | . 1 1 . . . Locate Traps 1 | . 1 . . . . Fabricator Hacks . | . . . . . . Repair Station Hacks . | . . . . . . Recycling Unit Hacks . | . . . . . . Scanalyzer 4 | . . 4 . . . Insert Component 2 | . . 2 . . . Analyze 2 | . . 2 . . . Garrison Access Hacks . | . . . . . . Unauthorized Hacks . | . . . . . . Terminals . | . . . . . . Fabricators . | . . . . . . Repair Stations . | . . . . . . Recycling Units . | . . . . . . Scanalyzers . | . . . . . . Garrison Access . | . . . . . . Data Cores Recovered . | . . . . . . Used . | . . . . . . Hacking Detections 3 | . 1 2 . . . Full Trace Events . | . . . . . . Feedback Events . | . . . . . . Feedback Blocked . | . . . . . . Robot Schematics Acquired . | . . . . . . Robots Built . | . . . . . . Authchips . | . . . . . . Time . | . . . . . . Total Robot Build Rating . | . . . . . . Part Schematics Acquired 1 | . . 1 . . . Parts Built . | . . . . . . Authchips . | . . . . . . Time . | . . . . . . Total Part Build Rating . | . . . . . . Parts Repaired . | . . . . . . Time . | . . . . . . Parts Recycled . | . . . . . . Recycled Matter . | . . . . . . Retrieved Matter . | . . . . . . Retrieved Components . | . . . . . . Parts Scanalyzed 2 | . . 2 . . . Part Schematics Acquired 1 | . . 1 . . . Parts Damaged . | . . . . . . Bothacking | -11 -10 -9 -9 -9 -8 ------------ Run | Scr Mat Mat Min Exi Min Used RIF Installer . | . . . . . . Robots Hacked . | . . . . . . Non-combat . | . . . . . . Combat . | . . . . . . Robot Hacks Applied . | . . . . . . Relay Couplers Released . | . . . . . . Fabnet Peak Effective % . | . . . . . . Robots Rewired . | . . . . . . Allies Hacked . | . . . . . . Hacks Repelled . | . . . . . . Allies | -11 -10 -9 -9 -9 -8 -------- Run | Scr Mat Mat Min Exi Min Total Allies 1 | . . . 1 . . Largest Group 1 | . . . 1 1 . Highest-Rated Group 31 | . . . 31 31 . Highest-Rated Ally 31 | . . . 31 31 . Total Orders . | . . . . . . Ally Attacks . | . . . . . . Total Damage . | . . . . . . Kills . | . . . . . . Allies Corrupted . | . . . . . . Allies Melted . | . . . . . . Intel | -11 -10 -9 -9 -9 -8 ------- Run | Scr Mat Mat Min Exi Min Robot Analysis Total . | . . . . . . Derelict Logs Recovered 1 | . . . 1 . . Drone Launches . | . . . . . . Drone Recoveries . | . . . . . . Exploration | -11 -10 -9 -9 -9 -8 ------------- Run | Scr Mat Mat Min Exi Min Turns Passed 1973 | 33 79 600 816 285 160 Spaces Moved 1504 | 33 78 394 665 226 108 Core 12 | 12 . . . . . Treads . | . . . . . . Legs . | . . . . . . Wheels 1492 | 21 78 394 665 226 108 Hover . | . . . . . . Flight . | . . . . . . Fastest Speed 50 | 50 90 90 115 115 115 Average Speed 114 | 81 95 111 118 115 128 Slowest Speed 145 | 100 100 120 145 115 145 Overloaded Moves . | . . . . . . Propulsion Burnouts . | . . . . . . Robots Hopped . | . . . . . . Cave-ins Triggered . | . . . . . . Exploration Rate (%) 44 | 4 33 51 98 61 20 Regions Visited 5 Branch Regions 3 Pre-discovered Areas 1 | . . . 1 . . Known Exits Taken 1 | . . 1 . . . Unknown Exits Taken 4 | 1 1 . 1 1 . Scrap Searched 3 | . . . 3 . . Spaces Dug . | . . . . . . Terrain Destroyed 139 | . . 50 53 26 10 Melee . | . . . . . . Projectile . | . . . . . . AOE 139 | . . 50 53 26 10 Terrain Rammed . | . . . . . . Walls Destroyed . | . . . . . . Machines Disabled . | . . . . . . Actions | -11 -10 -9 -9 -9 -8 --------- Run | Scr Mat Mat Min Exi Min Total 1669 | 38 82 489 688 249 123 Wait 44 | . . 17 12 12 3 Move 1499 | 32 77 393 664 225 108 Hop . | . . . . . . Pick Up 30 | 5 1 16 5 3 . Fast Attach 7 | 1 . 4 . . 2 Attach 13 | . 4 2 1 2 4 Detach 1 | . . . . . 1 Swap 8 | . . 4 1 2 1 Drop 4 | . . . 1 3 . Fire 60 | . . 53 4 2 1 Melee 3 | . . . . . 3 Ram . | . . . . . . Kick . | . . . . . . Crush . | . . . . . . Escape Stasis . | . . . . . . Rewire . | . . . . . . Trap . | . . . . . . Miscellaneous . | . . . . . . Route ------- -11/Scrapyard -10/Materials (discovered 2 exits: *Mat / Min) -9/Materials (discovered 2 exits: [*Mat] / *Min) -9/Mines (discovered 3 exits: [*Mat x2] / *Exi) -9/Exiles -8/Mines (discovered 1 exit: [*Mat]) History --------- Turn | Location | Event 14 | -11/Scrapyard | Discovered new exit (range 15) 34 | -11/Scrapyard | Entered Materials 103 | -10/Materials | Discovered new exit (range 12) 105 | -10/Materials | Identified exit to Mines 108 | -10/Materials | Core integrity fell below 50% 113 | -10/Materials | Entered another Materials area 113 | -9/Materials | Evolved 2 slots: Utility x2 300 | -9/Materials | Build established: Mutant 481 | -9/Materials | Discovered new exit (range 16) 644 | -9/Materials | Identified exit to Mines 713 | -9/Materials | Entered Mines 882 | -9/Mines | Assembled infested the area 943 | -9/Mines | Discovered new exit (range 5) 1008 | -9/Mines | Found a damaged Exp. Sensor Array with a note attached 1011 | -9/Mines | Found Prototype Device 1101 | -9/Mines | Escorted by a lone wolf Derelict 1150 | -9/Mines | YI-UF0 nonchalantly dropped a Grenade Launcher on the ground 1188 | -9/Mines | Discovered new exit (range 5) 1230 | -9/Mines | Discovered new exit (range 13) 1281 | -9/Mines | Learned Materials security intel 1453 | -9/Mines | Learned location of Storage (-7) 1529 | -9/Mines | Entered Exiles 1529 | -9/Exiles | Accompanied by 1 ally 1557 | -9/Exiles | Met 8R-AWN 1577 | -9/Exiles | Met EX-HEX 1610 | -9/Exiles | Met EX-BIN 1624 | -9/Exiles | Aligned with FarCom system 1625 | -9/Exiles | Given EX-Vault access code 1651 | -9/Exiles | Opened EX-Vault 1656 | -9/Exiles | Found Prototype Energy Cannon 1658 | -9/Exiles | Found Prototype Storage 1664 | -9/Exiles | Found Prototype Processor 1688 | -9/Exiles | Warned to stay clear of 0b10 Research branches 1720 | -9/Exiles | Met EX-DEC 1727 | -9/Exiles | Identified Latent Energy Streamer 1764 | -9/Exiles | Attacked by the Exiles 1805 | -9/Exiles | Core integrity fell below 50% 1805 | -9/Exiles | Discovered new exit (range 10) 1814 | -9/Exiles | Stole three prototypes: Lightpack 2.0, 0b10 Alert Chip, Latent Energy Streamer 1814 | -9/Exiles | Entered Mines 1836 | -8/Mines | Lost 5 parts (1p1n2u1w) 1905 | -8/Mines | Discovered new exit (range 5) 1939 | -8/Mines | CL-ANK came to Exiles' defense 1974 | -8/Mines | Core integrity fell below 20% 1974 | -8/Mines | Destroyed by CL-ANK with CL-ANK's Mallet Last Messages --------------- 01887_ Com. Wheel destroyed. 01887_ Destroyed Com. Wheel. 01889_ S-10 Pest destroyed. 01892_ Acquired 8 matter. 01894_ The unstable cave ceiling collapses. 01896_ R-06 Scavenger collects Lgt. Ion Engine. 01897_ Acquired Flight Unit. 01898_ R-06 Scavenger collects Lgt. Assault Rifle. 01905_ EXIT=FOUND 01916_ System corrupted: Matter fused (-8). 01935_ GXRBCOLFDVA%ZZ7JQA7ZSR3K0 01939_ CL-ANK: "I came as fast as I could... Wait, it was you!" 01939_ The unstable cave ceiling collapses. 01941_ CL-ANK sneak attacks. 01942_ R-06 Scavenger suffers critical hit (Smash). 01942_ R-06 Scavenger destroyed. 01945_ Acquired 2 matter. 01969_ System corrupted: Flail rejected. 01969_ Acquired Flail. 01971_ Nuclear Core destroyed. Map ----- +----------------------------------------------------+ | ????????????????????????????? | | ????????????????????????????? | | ????????????????????????????? | | ????????????????????????????? | | ????????????????????????????? | | ????????????????????????????? | | ????????????????????????????? | | ????????????????????????????? | | ????????????????????????????? | | ?????? ?????????????????????? | | ?? ??? ?????????????????????? | | ?? ??? ?????????????????????? | | ?? ??# #????????????????????? | | ?# ??# #????????????????????? | | ?# ??# #????????????????????? | | ?# ??# #????????????????????? | | ?# ??# #????????????????????? | | ?# #?# #????????????????????? | | ?# ### #??????##########????? | | ## ##[##?????# #????? | | # *** ##????# #????? | | # =%! ###### #### #????? | | ?# # #?# ####?? | | ## #?# s ##? | | # % ##?# < b #? | | ### #### # #?# @ #? | | ###?####?######?## #? | | #####????????????????## ##? | | #?????????????????????#####?? | | ????????????????????????????? | | ????????????????????????????? | | | | | | | | | | | | | | | | | | | | | | | | | | | | | | | | | | | | | | | +----------------------------------------------------+ Best States ------------- Heat Dissipation 38 Energy Generation 14 Energy Capacity 250 Matter Stores 300 Matter Capacity 300 Sight Range 16 Terrain Scan Density 10 Additional Mass Support 6 Armor Coverage 300 Evasion (%) 50 Melee Accuracy 5 Item Schematics ----------------- Sml. Storage Unit | -9/Materials | Scanalyzed Robot Schematics ------------------ None Fabricated ------------ Nothing Alien Tech Used ----------------- None Achievements -------------- None Challenges ------------ None Game ------ Seed SeismicWeldingShredder Manual? 0 Play Time 00:21:03 Cumulative 344.0 hours Start 2022.09.01 @ 13:07:43 End 2022.09.01 @ 13:39:48 Sessions 1 Manual Loads 0 Difficulty Rogue Special Mode None Game No. 165 Rogue 161 Adventurer 0 Explorer 4 Win Type - Total 18 Types 4/1/2/4/1/2/3/0/1 Lore% 83 Gallery% 86 Achievement% 78 Wizard Run 0 Options --------- ASCII 0 Keyboard 0 Movement Mouse Keybinds 0 Fullscreen 1 Font 18/SmallcapsGlow Map View 76x50 Tactical HUD 1 Map Filters NONE Filters NONE Steam 1 RUN: fef19c31-2df9-47f6-932a-df6fdfae2d34